[Event "FIDE Womens Grand Swiss 2023"]
[Site "Douglas/Isle of Man"]
[Date "2023.10.26"]
[Round "2.25"]
[White "Kanyamarala, Trisha"]
[Black "Milliet, Sophie"]
[Result "0-1"]
[ECO "D40"]
[WhiteElo "2184"]
[BlackElo "2391"]
[Annotator "RC"]
[PlyCount "132"]
[EventDate "2023.10.04"]
[EventType "swiss"]
[EventCountry "GBR"]
[SourceTitle "playchess.com"]
[Source "ChessBase"]
[SourceQuality "1"]
[TimeControl "40/6000+30:20/3000+30:900+30"]

1. d4 {[%emt 0:10:06]} d5 {[%emt 0:10:06]} 2. c4 {[%emt 0:00:15]} e6 {[%emt 0:00:04]} 3. Nc3 {[%emt 0:00:19]} c5 {[%emt 0:00:05]} 4. e3 {[%emt 0:06:17]} Nf6 {[%emt 0:00:31]} 5. Nf3 {[%emt 0:00:42]} a6 {[%emt 0:00:28]} 6. a4 {[%emt 0:11:14]} Nc6 {[%emt 0:01:54]} 7. Be2 {[%emt 0:03:00]} dxc4 {[%emt 0:01:19]} 8. Bxc4 {[%emt 0:00:16]} cxd4 {[%emt 0:03:23]} 9. exd4 {[%emt 0:00:43]} Be7 {[%emt 0:00:12]} 10. O-O {[%emt 0:00:51]} O-O {[%emt 0:00:04]} 11. Be3 {[%emt 0:07:55]} Nb4 {[%emt 0:01:55]} 12. Ne5 {[%emt 0:04:56]} Bd7 {[%emt 0:00:50]} 13. Qf3 {[%emt 0:11:19]} Bc6 {[%emt 0:15:40]} 14. Nxc6 {[%emt 0:02:08]} Nxc6 {[%emt 0:00:06]} 15. Rfd1 {[%emt 0:01:14]} Qa5 {[%emt 0:13:09]} 16. d5 {[%emt 0:05:58]} Ne5 {[%emt 0:00:28]} 17. Qe2 {[%emt 0:00:46]} Qc7 {[%emt 0:09:15]} 18. Ba2 {[%emt 0:07:36]} Neg4 {[%emt 0:00:25]} 19. g3 {[%emt 0:01:12]} Nxe3 {[%emt 0:00:19]} 20. Qxe3 {[%emt 0:03:10]} Bc5 {[%emt 0:01:04]} 21. Qf3 {[%emt 0:07:29]} Qb6 {[%emt 0:03:53]} 22. Rab1 {[%emt 0:02:32]} Rad8 {[%emt 0:03:24]} 23. Kg2 {[%emt 0:04:45]} e5 {[%emt 0:04:18]} 24. Rd2 {[%emt 0:02:03]} Qb4 {[%emt 0:04:45]} 25. Re2 {[%emt 0:01:22]} Bd4 {[%emt 0:01:11]} 26. Qd3 {[%emt 0:06:47]} Rd6 {[%emt 0:03:50]} 27. h3 {[%emt 0:04:52]} Rfd8 {[%emt 0:05:19]} 28. Rc2 {[%emt 0:01:36]} g6 {[%emt 0:03:13]} 29. Qe2 {[%emt 0:02:03]} R8d7 {[%emt 0:05:50]} 30. Rbc1 {[%emt 0:00:55]} Qa5 {[%emt 0:03:45]} 31. Qe1 {[%emt 0:00:55]} Kg7 {[%emt 0:07:40]} 32. Ne4 {[%emt 0:00:36]} Qxe1 {[%emt 0:00:09]} 33. Rxe1 {[%emt 0:00:05]} Nxe4 {[%emt 0:05:37]} 34. Rxe4 {[%emt 0:00:02]} Rb6 {[%emt 0:00:08]} 35. f4 {[%emt 0:00:57]} f6 {[%emt 0:00:08]} 36. Ree2 {[%emt 0:00:53]} Rb4 {[%emt 0:00:20]} 37. Rc4 {[%emt 0:00:37]} Rxb2 {[%emt 0:00:57]} 38. Rxb2 {[%emt 0:00:28]} Bxb2 {[%emt 0:00:01]} 39. fxe5 {[%emt 0:00:29]} Bxe5 {[%emt 0:01:33]} 40. Rc2 {[%emt 0:00:23]} Kf8 {[%emt 0:00:54]} 41. Rc8+ {[%emt 0:50:31]} Ke7 {[%emt 0:50:42]} 42. Rh8 {[%emt 0:00:00]} Kd6 {[%emt 0:00:00]} 43. Kf3 {[%emt 0:00:00]} Kc5 {[%emt 0:00:00]} 44. g4 {[%emt 0:00:00]} Kb4 {[%emt 0:00:00]} 45. Re8 {[%emt 0:00:00]} Kxa4 {[%emt 0:00:00]} 46. Ke4 {[%emt 0:00:00]} Bd6 {[%emt 0:00:00]} 47. Ra8 {[%emt 0:00:00]} a5 {[%emt 0:00:00]} 48. Kd4 {[%emt 0:00:00]} b5 {[%emt 0:00:00]} 49. Bb1 {[%emt 0:00:00]} Kb4 {[%emt 0:00:00]} 50. h4 {[%emt 0:00:00]} a4 {[%emt 0:00:00]} 51. h5 {[%emt 0:00:00]} a3 {[%emt 0:00:00]} 52. Rc8 {[%emt 0:00:00]} Be5+ {[%emt 0:00:32]} 53. Ke4 {[%emt 0:00:00]} Rc7 {[%emt 0:00:16]} 54. Ra8 {[%emt 0:00:00]} Rc4+ {[%emt 0:00:36]} 55. Kf3 {[%emt 0:00:00]} Rf4+ {[%emt 0:00:42]} 56. Ke3 {[%emt 0:00:00]} Rxg4 {[%emt 0:00:10]} 57. hxg6 {[%emt 0:00:00]} hxg6 {[%emt 0:00:04]} 58. Ra6 {[%emt 0:00:00]} Kb3 {[%emt 0:04:04]} 59. d6 {[%emt 0:00:00]} Rd4 {[%emt 0:01:30]} 60. Bxg6 {[%emt 0:00:00]} Rxd6 {[%emt 0:00:06]} 61. Ra8 {[%emt 0:12:51]} Kb2 {[%emt 0:15:34]} 62. Bf7 {[%emt 0:00:12]} b4 {[%emt 0:00:49]} 63. Ra4 {[%emt 0:00:21]} Rb6 {[%emt 0:01:51]} 64. Kd3 {[%emt 0:00:09]} b3 {[%emt 0:00:20]} 65. Re4 {[%emt 0:00:44]} a2 {[%emt 0:00:28]} 66. Re2+ {[%emt 0:00:33]} Ka3 {[%emt 0:00:03]} 0-1

[Event "FIDE Womens Grand Swiss 2023"]
[Site "Douglas/Isle of Man"]
[Date "2023.10.27"]
[Round "3.1"]
[White "Tan, Zhongyi"]
[Black "Stefanova, Antoaneta"]
[Result "1-0"]
[ECO "D30"]
[WhiteElo "2517"]
[BlackElo "2424"]
[Annotator "ChessBase"]
[PlyCount "65"]
[EventDate "2023.10.04"]
[EventType "swiss"]
[EventCountry "GBR"]
[SourceTitle "playchess.com"]
[Source "ChessBase"]
[SourceQuality "1"]
[TimeControl "40/6000+30:20/3000+30:900+30"]

1. d4 {[%emt 0:10:49]} d5 {[%emt 0:10:16]} 2. c4 {[%emt 0:00:15]} e6 {[%emt 0:00:06]} 3. Nf3 {[%emt 0:00:19]} Nf6 {[%emt 0:00:52]} 4. e3 {[%emt 0:04:59]} a6 {[%emt 0:06:03]} 5. b3 {[%emt 0:04:22]} c5 {[%emt 0:07:04]} 6. Be2 {[%emt 0:00:19]} cxd4 {[%emt 0:06:59]} 7. exd4 {[%emt 0:00:09]} Bb4+ {[%emt 0:00:52]} 8. Bd2 {[%emt 0:03:25]} Be7 {[%emt 0:01:23]} 9. O-O {[%emt 0:02:25]} b6 {[%emt 0:03:04]} 10. a4 {[%emt 0:12:49]} Nc6 {[%emt 0:02:20]} 11. Be3 {[%emt 0:05:27]} Bb7 {[%emt 0:06:41]} 12. Nc3 {[%emt 0:00:43]} Rc8 {[%emt 0:03:49]} 13. Rc1 {[%emt 0:04:06]} O-O {[%emt 0:05:07]} 14. Ne5 {[%emt 0:05:53]} dxc4 {[%emt 0:01:41]} 15. Nxc6 {[%emt 0:01:18]} Bxc6 {[%emt 0:13:17]} 16. bxc4 {[%emt 0:00:49]} Qd7 {[%emt 0:07:03]} 17. Qb3 {[%emt 0:02:01]} a5 {[%emt 0:08:09]} 18. Rfd1 {[%emt 0:01:38]} Bb4 {[%emt 0:00:44]} 19. Nb5 {[%emt 0:07:45]} Qb7 {[%emt 0:04:53]} 20. Bf1 {[%emt 0:06:43]} Rfd8 {[%emt 0:02:10]} 21. h3 {[%emt 0:00:57]} Rd7 {[%emt 0:04:06]} 22. c5 {[%emt 0:10:48]} Rcd8 {[%emt 0:06:39]} 23. Nd6 {[%emt 0:01:33]} Qa8 {[%emt 0:01:20]} 24. Bg5 {[%emt 0:00:37]} Kh8 {[%emt 0:04:14]} 25. Qg3 {[%emt 0:10:52]} Rxd6 {[%emt 0:02:16]} 26. Bxf6 {[%emt 0:00:11]} gxf6 {[%emt 0:00:31]} 27. cxd6 {[%emt 0:00:04]} Bxd6 {[%emt 0:01:31]} 28. Qh4 {[%emt 0:00:17]} Be7 {[%emt 0:00:15]} 29. Bd3 {[%emt 0:04:49]} f5 {[%emt 0:00:37]} 30. Qxe7 {[%emt 0:00:08]} Bxg2 {[%emt 0:00:39]} 31. Rc7 {[%emt 0:01:39]} Rg8 {[%emt 0:00:28]} 32. Qf6+ {[%emt 0:00:06]} Rg7 {[%emt 0:00:03]} 33. Rxf7 {[%emt 0:00:18]} 1-0

[Event "FIDE Womens Grand Swiss 2023"]
[Site "Douglas/Isle of Man"]
[Date "2023.10.27"]
[Round "3.2"]
[White "Bulmaga, Irina"]
[Black "Muzychuk, Anna"]
[Result "0-1"]
[ECO "C85"]
[WhiteElo "2423"]
[BlackElo "2510"]
[Annotator "ChessBase"]
[PlyCount "80"]
[EventDate "2023.10.04"]
[EventType "swiss"]
[EventCountry "GBR"]
[SourceTitle "playchess.com"]
[Source "ChessBase"]
[SourceQuality "1"]
[TimeControl "40/6000+30:20/3000+30:900+30"]

1. e4 {[%emt 0:10:04]} e5 {[%emt 0:10:04]} 2. Nf3 {[%emt 0:00:07]} Nc6 {[%emt 0:00:05]} 3. Bb5 {[%emt 0:00:13]} a6 {[%emt 0:00:07]} 4. Ba4 {[%emt 0:00:07]} Nf6 {[%emt 0:00:05]} 5. O-O {[%emt 0:00:18]} Be7 {[%emt 0:00:06]} 6. Bxc6 {[%emt 0:00:27]} dxc6 {[%emt 0:00:07]} 7. Re1 {[%emt 0:00:13]} Nd7 {[%emt 0:09:52]} 8. d4 {[%emt 0:01:03]} exd4 {[%emt 0:00:05]} 9. Qxd4 {[%emt 0:00:15]} O-O {[%emt 0:00:05]} 10. Bf4 {[%emt 0:01:00]} Nc5 {[%emt 0:00:53]} 11. Qe3 {[%emt 0:00:33]} Ne6 {[%emt 0:00:10]} 12. Bg3 {[%emt 0:03:27]} Bc5 {[%emt 0:00:51]} 13. Qc3 {[%emt 0:01:20]} a5 {[%emt 0:11:35]} 14. Nbd2 {[%emt 0:00:16]} Bb4 {[%emt 0:11:49]} 15. Qe3 {[%emt 0:13:28]} Bc5 {[%emt 0:00:32]} 16. Qc3 {[%emt 0:01:23]} Bb4 {[%emt 0:00:05]} 17. Qb3 {[%emt 0:29:18]} Bxd2 {[%emt 0:09:03]} 18. Red1 {[%emt 0:01:30]} Nd4 {[%emt 0:02:07]} 19. Nxd4 {[%emt 0:00:59]} Qxd4 {[%emt 0:00:01]} 20. Bf4 {[%emt 0:27:36]} Be6 {[%emt 0:08:25]} 21. Qf3 {[%emt 0:05:48]} Qxb2 {[%emt 0:00:44]} 22. Bxd2 {[%emt 0:00:14]} Qxc2 {[%emt 0:01:03]} 23. Bf4 {[%emt 0:05:16]} Rfd8 {[%emt 0:07:18]} 24. Rdc1 {[%emt 0:03:34]} Qd3 {[%emt 0:01:46]} 25. Bxc7 {[%emt 0:00:14]} Qxf3 {[%emt 0:00:24]} 26. gxf3 {[%emt 0:00:03]} Rd7 {[%emt 0:03:06]} 27. Bb6 {[%emt 0:00:02]} a4 {[%emt 0:03:01]} 28. a3 {[%emt 0:00:30]} Rd3 {[%emt 0:01:33]} 29. Kg2 {[%emt 0:03:27]} f5 {[%emt 0:00:49]} 30. Rd1 {[%emt 0:00:36]} Rb3 {[%emt 0:00:51]} 31. Be3 {[%emt 0:00:16]} Kf7 {[%emt 0:04:31]} 32. Kg3 {[%emt 0:00:51]} g5 {[%emt 0:04:28]} 33. exf5 {[%emt 0:01:27]} Bxf5 {[%emt 0:00:04]} 34. Bxg5 {[%emt 0:00:16]} Rg8 {[%emt 0:01:52]} 35. Kf4 {[%emt 0:00:02]} Be6 {[%emt 0:00:13]} 36. Rd6 {[%emt 0:01:13]} Rb5 {[%emt 0:05:45]} 37. h4 {[%emt 0:00:35]} Rf5+ {[%emt 0:01:01]} 38. Ke4 {[%emt 0:00:14]} Re8 {[%emt 0:02:31]} 39. f4 {[%emt 0:00:10]} h6 {[%emt 0:00:51]} 40. Bd8 {[%emt 0:01:24]} Rd5 {[%emt 0:03:29]} 0-1

[Event "FIDE Womens Grand Swiss 2023"]
[Site "Douglas/Isle of Man"]
[Date "2023.10.27"]
[Round "3.3"]
[White "Paehtz, Elisabeth"]
[Black "Kamalidenova, Meruert"]
[Result "1-0"]
[ECO "A15"]
[WhiteElo "2484"]
[BlackElo "2351"]
[Annotator "ChessBase"]
[PlyCount "81"]
[EventDate "2023.10.04"]
[EventType "swiss"]
[EventCountry "GBR"]
[SourceTitle "playchess.com"]
[Source "ChessBase"]
[SourceQuality "1"]
[TimeControl "40/6000+30:20/3000+30:900+30"]

1. Nf3 {[%emt 0:10:03]} Nf6 {[%emt 0:10:07]} 2. c4 {[%emt 0:00:31]} g6 {[%emt 0:00:07]} 3. b3 {[%emt 0:00:02]} Bg7 {[%emt 0:00:08]} 4. Bb2 {[%emt 0:00:02]} d6 {[%emt 0:00:16]} 5. g3 {[%emt 0:00:06]} e5 {[%emt 0:00:09]} 6. d3 {[%emt 0:00:24]} O-O {[%emt 0:00:35]} 7. Bg2 {[%emt 0:00:05]} c6 {[%emt 0:01:32]} 8. O-O {[%emt 0:00:26]} Na6 {[%emt 0:00:24]} 9. Nc3 {[%emt 0:11:23]} Re8 {[%emt 0:01:52]} 10. Rc1 {[%emt 0:01:32]} Nc7 {[%emt 0:05:13]} 11. e3 {[%emt 0:02:39]} Bf5 {[%emt 0:06:38]} 12. h3 {[%emt 0:04:22]} Qd7 {[%emt 0:02:27]} 13. Kh2 {[%emt 0:00:09]} Rad8 {[%emt 0:01:46]} 14. e4 {[%emt 0:15:27]} Be6 {[%emt 0:00:57]} 15. c5 {[%emt 0:11:35]} dxc5 {[%emt 0:14:44]} 16. Nxe5 {[%emt 0:03:45]} Qd6 {[%emt 0:03:25]} 17. Na4 {[%emt 0:07:06]} Na6 {[%emt 0:02:23]} 18. f4 {[%emt 0:07:18]} Bc8 {[%emt 0:06:44]} 19. Qc2 {[%emt 0:05:52]} Nb4 {[%emt 0:07:36]} 20. Qxc5 {[%emt 0:01:36]} Nxd3 {[%emt 0:05:49]} 21. Qxd6 {[%emt 0:02:45]} Rxd6 {[%emt 0:00:11]} 22. Rcd1 {[%emt 0:03:08]} Red8 {[%emt 0:01:49]} 23. Ba3 {[%emt 0:00:40]} c5 {[%emt 0:03:30]} 24. Nxc5 {[%emt 0:02:55]} Nxc5 {[%emt 0:02:22]} 25. Rxd6 {[%emt 0:00:04]} Rxd6 {[%emt 0:00:05]} 26. Bxc5 {[%emt 0:00:04]} Rd8 {[%emt 0:01:45]} 27. Bxa7 {[%emt 0:00:24]} Be6 {[%emt 0:01:00]} 28. Bb6 {[%emt 0:01:39]} Rd2 {[%emt 0:01:33]} 29. Rf2 {[%emt 0:00:10]} Rd1 {[%emt 0:00:03]} 30. Bf3 {[%emt 0:01:05]} Rd6 {[%emt 0:00:30]} 31. Bc5 {[%emt 0:00:58]} Rd8 {[%emt 0:00:37]} 32. Be3 {[%emt 0:02:00]} Ne8 {[%emt 0:02:11]} 33. Rd2 {[%emt 0:04:20]} Rc8 {[%emt 0:00:28]} 34. Nd3 {[%emt 0:04:49]} Bf8 {[%emt 0:01:08]} 35. Kg2 {[%emt 0:00:47]} Nd6 {[%emt 0:00:53]} 36. Nf2 {[%emt 0:01:42]} Nb5 {[%emt 0:01:12]} 37. f5 {[%emt 0:02:17]} gxf5 {[%emt 0:01:11]} 38. exf5 {[%emt 0:00:03]} Bxf5 {[%emt 0:00:14]} 39. Rd5 {[%emt 0:01:21]} Nd6 {[%emt 0:00:28]} 40. Bf4 {[%emt 0:00:54]} Be6 {[%emt 0:01:06]} 41. Rg5+ {[%emt 0:50:05]} 1-0

[Event "FIDE Womens Grand Swiss 2023"]
[Site "Douglas/Isle of Man"]
[Date "2023.10.27"]
[Round "3.4"]
[White "Guichard, Pauline"]
[Black "Muzychuk, Mariya"]
[Result "1/2-1/2"]
[ECO "D46"]
[WhiteElo "2358"]
[BlackElo "2519"]
[Annotator "ChessBase"]
[PlyCount "84"]
[EventDate "2023.10.04"]
[EventType "swiss"]
[EventCountry "GBR"]
[SourceTitle "playchess.com"]
[Source "ChessBase"]
[SourceQuality "1"]
[TimeControl "40/6000+30:20/3000+30:900+30"]

1. d4 {[%emt 0:10:03]} Nf6 {[%emt 0:10:07]} 2. c4 {[%emt 0:00:08]} e6 {[%emt 0:00:16]} 3. Nf3 {[%emt 0:00:14]} d5 {[%emt 0:00:55]} 4. Nc3 {[%emt 0:00:17]} c6 {[%emt 0:00:20]} 5. e3 {[%emt 0:00:16]} Nbd7 {[%emt 0:00:09]} 6. Qc2 {[%emt 0:00:19]} Bd6 {[%emt 0:00:38]} 7. Bd3 {[%emt 0:00:15]} O-O {[%emt 0:01:27]} 8. O-O {[%emt 0:00:30]} dxc4 {[%emt 0:00:36]} 9. Bxc4 {[%emt 0:00:09]} b5 {[%emt 0:00:15]} 10. Be2 {[%emt 0:00:15]} Bb7 {[%emt 0:00:47]} 11. e4 {[%emt 0:00:38]} e5 {[%emt 0:00:33]} 12. dxe5 {[%emt 0:00:42]} Nxe5 {[%emt 0:00:05]} 13. Nd4 {[%emt 0:00:40]} Neg4 {[%emt 0:03:02]} 14. g3 {[%emt 0:00:29]} Re8 {[%emt 0:01:57]} 15. Nf5 {[%emt 0:03:50]} Bc5 {[%emt 0:01:15]} 16. Bf4 {[%emt 0:03:13]} Qb6 {[%emt 0:03:25]} 17. Kg2 {[%emt 0:02:06]} g6 {[%emt 0:05:24]} 18. h3 {[%emt 0:19:13]} gxf5 {[%emt 0:01:06]} 19. hxg4 {[%emt 0:00:50]} Nxe4 {[%emt 0:00:31]} 20. gxf5 {[%emt 0:09:03]} Nxc3 {[%emt 0:00:17]} 21. bxc3 {[%emt 0:00:30]} Bf8 {[%emt 0:00:22]} 22. Bf3 {[%emt 0:06:14]} c5 {[%emt 0:01:17]} 23. Bxb7 {[%emt 0:00:16]} Qxb7+ {[%emt 0:00:05]} 24. f3 {[%emt 0:00:12]} Qe7 {[%emt 0:08:33]} 25. Rf2 {[%emt 0:10:23]} Bg7 {[%emt 0:04:14]} 26. Rh1 {[%emt 0:03:09]} Qf6 {[%emt 0:04:44]} 27. Qb1 {[%emt 0:06:02]} a6 {[%emt 0:06:19]} 28. g4 {[%emt 0:00:44]} Qxc3 {[%emt 0:07:39]} 29. f6 {[%emt 0:01:13]} Qxf6 {[%emt 0:00:22]} 30. Qxh7+ {[%emt 0:07:36]} Kf8 {[%emt 0:00:04]} 31. Kg3 {[%emt 0:14:02]} Re6 {[%emt 0:10:27]} 32. Rd2 {[%emt 0:06:27]} c4 {[%emt 0:24:19]} 33. Rhd1 {[%emt 0:02:56]} Qg6 {[%emt 0:06:50]} 34. Rd8+ {[%emt 0:01:53]} Rxd8 {[%emt 0:00:12]} 35. Rxd8+ {[%emt 0:00:04]} Ke7 {[%emt 0:02:25]} 36. Qg8 {[%emt 0:00:14]} Bh6 {[%emt 0:01:01]} 37. Re8+ {[%emt 0:02:09]} Kd7 {[%emt 0:00:05]} 38. Rd8+ {[%emt 0:00:26]} Ke7 {[%emt 0:00:02]} 39. Re8+ {[%emt 0:01:17]} Kd7 {[%emt 0:00:03]} 40. Rd8+ {[%emt 0:00:38]} Ke7 {[%emt 0:00:36]} 41. Bd6+ {[%emt 0:00:29]} Kf6 {[%emt 0:00:02]} 42. Qh8+ {[%emt 0:00:05]} Qg7 1/2-1/2

[Event "FIDE Womens Grand Swiss 2023"]
[Site "Douglas/Isle of Man"]
[Date "2023.10.27"]
[Round "3.5"]
[White "Assaubayeva, Bibisara"]
[Black "Mammadzada, Gunay"]
[Result "1-0"]
[ECO "D46"]
[WhiteElo "2469"]
[BlackElo "2441"]
[Annotator "ChessBase"]
[PlyCount "57"]
[EventDate "2023.10.04"]
[EventType "swiss"]
[EventCountry "GBR"]
[SourceTitle "playchess.com"]
[Source "ChessBase"]
[SourceQuality "1"]
[TimeControl "40/6000+30:20/3000+30:900+30"]

1. c4 {[%emt 0:10:03]} c6 {[%emt 0:10:08]} 2. d4 {[%emt 0:00:05]} d5 {[%emt 0:00:04]} 3. Nc3 {[%emt 0:00:04]} Nf6 {[%emt 0:00:09]} 4. e3 {[%emt 0:00:04]} e6 {[%emt 0:02:31]} 5. Nf3 {[%emt 0:00:07]} Nbd7 {[%emt 0:00:15]} 6. Bd3 {[%emt 0:00:07]} b6 {[%emt 0:06:38]} 7. e4 {[%emt 0:01:26]} dxe4 {[%emt 0:01:20]} 8. Nxe4 {[%emt 0:00:06]} Bb7 {[%emt 0:00:27]} 9. O-O {[%emt 0:00:09]} Be7 {[%emt 0:01:56]} 10. Nc3 {[%emt 0:10:40]} O-O {[%emt 0:12:31]} 11. Bf4 {[%emt 0:07:32]} Re8 {[%emt 0:13:36]} 12. Bc2 {[%emt 0:12:51]} Nf8 {[%emt 0:04:55]} 13. Ne5 {[%emt 0:03:52]} Ng6 {[%emt 0:00:17]} 14. Bg3 {[%emt 0:10:12]} Bd6 {[%emt 0:06:53]} 15. Qe2 {[%emt 0:02:49]} Qe7 {[%emt 0:03:35]} 16. h4 {[%emt 0:04:58]} c5 {[%emt 0:08:50]} 17. Nb5 {[%emt 0:05:39]} Bb8 {[%emt 0:01:24]} 18. h5 {[%emt 0:00:38]} Nf8 {[%emt 0:00:39]} 19. Rad1 {[%emt 0:09:50]} a6 {[%emt 0:08:58]} 20. Nc3 {[%emt 0:01:02]} b5 {[%emt 0:00:46]} 21. h6 {[%emt 0:02:06]} Ng6 {[%emt 0:01:52]} 22. hxg7 {[%emt 0:05:02]} cxd4 {[%emt 0:01:15]} 23. Rxd4 {[%emt 0:02:13]} Qc5 {[%emt 0:00:59]} 24. Bxg6 {[%emt 0:01:26]} fxg6 {[%emt 0:09:03]} 25. Rfd1 {[%emt 0:01:23]} b4 {[%emt 0:04:52]} 26. Na4 {[%emt 0:01:06]} Qa5 {[%emt 0:00:12]} 27. b3 {[%emt 0:01:32]} Ba7 {[%emt 0:00:59]} 28. Rd7 {[%emt 0:02:59]} Be4 {[%emt 0:06:47]} 29. Nf7 {[%emt 0:03:03]} 1-0

[Event "FIDE Womens Grand Swiss 2023"]
[Site "Douglas/Isle of Man"]
[Date "2023.10.27"]
[Round "3.6"]
[White "Vaishali, Rameshbabu"]
[Black "Garifullina, Leya"]
[Result "1-0"]
[ECO "B23"]
[WhiteElo "2448"]
[BlackElo "2402"]
[Annotator "ChessBase"]
[PlyCount "49"]
[EventDate "2023.10.04"]
[EventType "swiss"]
[EventCountry "GBR"]
[SourceTitle "playchess.com"]
[Source "ChessBase"]
[SourceQuality "1"]
[TimeControl "40/6000+30:20/3000+30:900+30"]

1. e4 {[%emt 0:10:34]} c5 {[%emt 0:10:25]} 2. Nc3 {[%emt 0:00:12]} d6 {[%emt 0:00:07]} 3. f4 {[%emt 0:00:22]} g6 {[%emt 0:02:00]} 4. Nf3 {[%emt 0:00:11]} Bg7 {[%emt 0:00:25]} 5. Bb5+ {[%emt 0:00:08]} Bd7 {[%emt 0:00:16]} 6. Bc4 {[%emt 0:00:04]} Nc6 {[%emt 0:00:12]} 7. d3 {[%emt 0:00:07]} Na5 {[%emt 0:01:16]} 8. Bd2 {[%emt 0:00:14]} e6 {[%emt 0:04:33]} 9. Qe2 {[%emt 0:03:23]} Ne7 {[%emt 0:00:58]} 10. O-O-O {[%emt 0:03:13]} a6 {[%emt 0:06:44]} 11. f5 {[%emt 0:00:50]} b5 {[%emt 0:06:59]} 12. f6 {[%emt 0:01:14]} Bxf6 {[%emt 0:04:13]} 13. e5 {[%emt 0:00:12]} Bg7 {[%emt 0:07:06]} 14. Ne4 {[%emt 0:13:01]} Nb7 {[%emt 0:09:47]} 15. Bg5 {[%emt 0:27:47]} Bc6 {[%emt 0:10:12]} 16. Bxe6 {[%emt 0:35:45]} Bxe4 {[%emt 0:19:11]} 17. exd6 {[%emt 0:04:56]} Nxd6 {[%emt 0:14:28]} 18. dxe4 {[%emt 0:00:08]} Qb6 {[%emt 0:06:16]} 19. e5 {[%emt 0:02:44]} Ndf5 {[%emt 0:02:38]} 20. Bd7+ {[%emt 0:00:07]} Kf8 {[%emt 0:00:03]} 21. g4 {[%emt 0:01:13]} Nd4 {[%emt 0:02:23]} 22. Nxd4 {[%emt 0:00:11]} cxd4 {[%emt 0:00:04]} 23. Qf3 {[%emt 0:00:21]} Ra7 {[%emt 0:00:22]} 24. Rhf1 {[%emt 0:00:42]} Nf5 {[%emt 0:01:12]} 25. gxf5 {[%emt 0:00:10]} 1-0

[Event "FIDE Womens Grand Swiss 2023"]
[Site "Douglas/Isle of Man"]
[Date "2023.10.27"]
[Round "3.7"]
[White "Kosteniuk, Alexandra"]
[Black "Roebers, Eline"]
[Result "1/2-1/2"]
[ECO "C19"]
[WhiteElo "2523"]
[BlackElo "2390"]
[Annotator "ChessBase"]
[PlyCount "36"]
[EventDate "2023.10.04"]
[EventType "swiss"]
[EventCountry "GBR"]
[SourceTitle "playchess.com"]
[Source "ChessBase"]
[SourceQuality "1"]
[TimeControl "40/6000+30:20/3000+30:900+30"]

1. e4 {[%emt 0:10:03]} e6 {[%emt 0:10:04]} 2. d4 {[%emt 0:00:06]} d5 {[%emt 0:00:03]} 3. Nc3 {[%emt 0:00:13]} Bb4 {[%emt 0:00:06]} 4. e5 {[%emt 0:00:12]} c5 {[%emt 0:00:05]} 5. a3 {[%emt 0:00:06]} Bxc3+ {[%emt 0:00:04]} 6. bxc3 {[%emt 0:00:08]} Nc6 {[%emt 0:00:08]} 7. a4 {[%emt 0:07:45]} Nge7 {[%emt 0:03:00]} 8. Bb5 {[%emt 0:05:51]} Qa5 {[%emt 0:05:11]} 9. Bd2 {[%emt 0:01:55]} Bd7 {[%emt 0:02:04]} 10. Qg4 {[%emt 0:08:24]} O-O {[%emt 0:22:56]} 11. Nf3 {[%emt 0:07:04]} f6 {[%emt 0:06:59]} 12. c4 {[%emt 0:25:17]} Qc7 {[%emt 0:04:58]} 13. cxd5 {[%emt 0:02:12]} exd5 {[%emt 0:06:08]} 14. e6 {[%emt 0:01:55]} Be8 {[%emt 0:04:21]} 15. Bf4 {[%emt 0:11:09]} Qa5+ {[%emt 0:01:04]} 16. Bd2 {[%emt 0:00:04]} Qc7 {[%emt 0:02:01]} 17. Bf4 {[%emt 0:00:40]} Qa5+ {[%emt 0:00:06]} 18. Bd2 {[%emt 0:00:05]} Qc7 {[%emt 0:00:04]} 1/2-1/2

[Event "FIDE Womens Grand Swiss 2023"]
[Site "Douglas/Isle of Man"]
[Date "2023.10.27"]
[Round "3.8"]
[White "Goryachkina, Aleksandra"]
[Black "Divya Deshmukh"]
[Result "1-0"]
[ECO "D37"]
[WhiteElo "2558"]
[BlackElo "2408"]
[Annotator "ChessBase"]
[PlyCount "73"]
[EventDate "2023.10.04"]
[EventType "swiss"]
[EventCountry "GBR"]
[SourceTitle "playchess.com"]
[Source "ChessBase"]
[SourceQuality "1"]
[TimeControl "40/6000+30:20/3000+30:900+30"]

1. d4 {[%emt 0:10:05]} Nf6 {[%emt 0:10:18]} 2. c4 {[%emt 0:00:20]} e6 {[%emt 0:00:03]} 3. Nf3 {[%emt 0:00:18]} d5 {[%emt 0:00:04]} 4. Nc3 {[%emt 0:00:21]} Be7 {[%emt 0:00:07]} 5. Bf4 {[%emt 0:00:34]} O-O {[%emt 0:00:08]} 6. e3 {[%emt 0:00:32]} c5 {[%emt 0:00:30]} 7. dxc5 {[%emt 0:01:13]} Bxc5 {[%emt 0:00:05]} 8. Qc2 {[%emt 0:01:19]} Nc6 {[%emt 0:00:52]} 9. Rd1 {[%emt 0:01:13]} Qa5 {[%emt 0:01:30]} 10. a3 {[%emt 0:01:12]} Rd8 {[%emt 0:00:03]} 11. Nd2 {[%emt 0:05:13]} d4 {[%emt 0:00:21]} 12. Nb3 {[%emt 0:02:35]} Qb6 {[%emt 0:00:09]} 13. Na4 {[%emt 0:02:25]} Bb4+ {[%emt 0:00:51]} 14. axb4 {[%emt 0:01:01]} Qxb4+ {[%emt 0:00:02]} 15. Nd2 {[%emt 0:00:37]} Qa5 {[%emt 0:00:05]} 16. Qb3 {[%emt 0:03:11]} e5 {[%emt 0:01:45]} 17. Bg5 {[%emt 0:01:08]} Nb4 {[%emt 0:00:51]} 18. Bxf6 {[%emt 0:03:36]} gxf6 {[%emt 0:00:15]} 19. Be2 {[%emt 0:01:39]} Bd7 {[%emt 0:19:17]} 20. Ra1 {[%emt 0:01:34]} dxe3 {[%emt 0:29:18]} 21. fxe3 {[%emt 0:02:18]} b5 {[%emt 0:01:17]} 22. O-O {[%emt 0:01:45]} bxa4 {[%emt 0:01:56]} 23. Qc3 {[%emt 0:01:16]} f5 {[%emt 0:02:53]} 24. Nf3 {[%emt 0:01:52]} f6 {[%emt 0:01:14]} 25. Nh4 {[%emt 0:01:29]} Qc5 {[%emt 0:10:31]} 26. Nxf5 {[%emt 0:14:03]} Bc6 {[%emt 0:08:44]} 27. Qe1 {[%emt 0:05:13]} Kh8 {[%emt 0:00:40]} 28. Qh4 {[%emt 0:01:47]} Qf8 {[%emt 0:02:29]} 29. Ng3 {[%emt 0:09:30]} Qe7 {[%emt 0:08:44]} 30. Rxf6 {[%emt 0:02:54]} Nc2 {[%emt 0:05:42]} 31. Nf5 {[%emt 0:05:04]} Qb7 {[%emt 0:00:01]} 32. Rf1 {[%emt 0:08:30]} Rg8 {[%emt 0:01:03]} 33. Rxc6 {[%emt 0:03:45]} Qxc6 {[%emt 0:01:46]} 34. Bf3 {[%emt 0:00:33]} Qb6 {[%emt 0:03:21]} 35. c5 {[%emt 0:01:24]} Qd8 {[%emt 0:00:09]} 36. Qe4 {[%emt 0:01:25]} Qc7 {[%emt 0:00:53]} 37. Qxc2 {[%emt 0:00:43]} 1-0